[Event "NOR-ch Elite 2019"]
[Site "Larvik"]
[Date "2019.07.11"]
[Round "7.7"]
[White "Mihajlov, Sebastian"]
[Black "Haug, Johannes"]
[Result "1-0"]
[ECO "B13"]
[WhiteElo "2375"]
[BlackElo "2431"]
[Annotator "ChessBase"]
[PlyCount "47"]
[EventDate "2019.07.05"]
[EventType "swiss"]
[EventCountry "NOR"]
[SourceTitle "playchess.com"]
[Source "ChessBase"]
[SourceQuality "1"]
[TimeControl "40/5400+30:1800+30"]

1. e4 {[%emt 0:00:00]} c6 {[%emt 0:00:59]} 2. d4 {[%emt 0:00:00]} d5 {[%emt 0:00:04]} 3. exd5 {[%emt 0:00:00]} cxd5 {[%emt 0:00:09]} 4. Nf3 {[%emt 0:00:04]} Nc6 {[%emt 0:00:45]} 5. Bb5 {[%emt 0:00:20]} e6 {[%emt 0:13:28]} 6. O-O {[%emt 0:01:09]} Bd6 {[%emt 0:01:44]} 7. c3 {[%emt 0:14:44]} Nge7 {[%emt 0:00:00]} 8. Bd3 {[%emt 0:01:57]} f6 {[%emt 0:07:44]} 9. c4 {[%emt 0:12:17]} dxc4 {[%emt 0:26:35]} 10. Bxc4 {[%emt 0:00:04]} Na5 {[%emt 0:02:27]} 11. Bd3 {[%emt 0:00:54]} b6 {[%emt 0:00:59]} 12. Qe2 {[%emt 0:09:03]} Nac6 {[%emt 0:04:00]} 13. Nc3 {[%emt 0:03:49]} Kf7 {[%emt 0:06:54]} 14. Re1 {[%emt 0:05:40]} Qd7 {[%emt 0:14:29]} 15. Bc4 {[%emt 0:05:42]} Nd8 {[%emt 0:09:28]} 16. Ng5+ {[%emt 0:11:38]} Kf8 {[%emt 0:03:17]} 17. Qh5 {[%emt 0:08:42]} fxg5 {[%emt 0:03:40]} 18. Qf3+ {[%emt 0:00:04]} Nf5 {[%emt 0:00:39]} 19. Qxa8 {[%emt 0:00:52]} Bb7 {[%emt 0:00:10]} 20. Qxa7 {[%emt 0:00:12]} Qc6 {[%emt 0:00:33]} 21. Bf1 {[%emt 0:00:40]} Nxd4 {[%emt 0:00:55]} 22. Re4 {[%emt 0:01:09]} e5 {[%emt 0:01:11]} 23. Ba6 {[%emt 0:03:15]} Kf7 {[%emt 0:00:37]} 24. Bxg5 {[%emt 0:01:10]} 1-0

[Event "NOR-ch Elite 2019"]
[Site "Larvik"]
[Date "2019.07.11"]
[Round "7.8"]
[White "Tryggestad, Andreas Garberg"]
[Black "Ranaldi, Lucas"]
[Result "0-1"]
[ECO "B11"]
[WhiteElo "2336"]
[BlackElo "2262"]
[Annotator "NA"]
[PlyCount "106"]
[EventDate "2019.07.05"]
[EventType "swiss"]
[EventCountry "NOR"]
[SourceTitle "playchess.com"]
[Source "ChessBase"]
[SourceQuality "1"]
[TimeControl "40/5400+30:1800+30"]

1. e4 {[%emt 0:00:00]} c6 {[%emt 0:00:05]} 2. Nc3 {[%emt 0:00:00]} d5 {[%emt 0:00:05]} 3. Nf3 {[%emt 0:00:00]} Bg4 {[%emt 0:00:07]} 4. h3 {[%emt 0:00:00]} Bxf3 {[%emt 0:00:06]} 5. Qxf3 {[%emt 0:00:00]} Nf6 {[%emt 0:00:08]} 6. d4 {[%emt 0:00:00]} dxe4 {[%emt 0:00:07]} 7. Qe3 {[%emt 0:00:09]} Nbd7 {[%emt 0:00:07]} 8. Nxe4 {[%emt 0:00:11]} Nxe4 {[%emt 0:00:05]} 9. Qxe4 {[%emt 0:00:06]} Nf6 {[%emt 0:00:10]} 10. Qh4 {[%emt 0:01:04]} e6 {[%emt 0:03:27]} 11. Bd3 {[%emt 0:00:14]} Nd5 {[%emt 0:20:26]} 12. Bg5 {[%emt 0:17:23]} Be7 {[%emt 0:07:03]} 13. Bxe7 {[%emt 0:00:06]} Qxe7 {[%emt 0:00:14]} 14. Qxe7+ {[%emt 0:03:11]} Kxe7 {[%emt 0:00:11]} 15. O-O-O {[%emt 0:01:05]} Rhd8 {[%emt 0:04:43]} 16. Rhe1 {[%emt 0:00:26]} g6 {[%emt 0:08:34]} 17. c3 {[%emt 0:05:00]} Rac8 {[%emt 0:13:26]} 18. Kc2 {[%emt 0:01:33]} c5 {[%emt 0:07:50]} 19. dxc5 {[%emt 0:01:35]} Rxc5 {[%emt 0:00:20]} 20. Be4 {[%emt 0:02:53]} b6 {[%emt 0:03:57]} 21. a3 {[%emt 0:01:46]} Nf6 {[%emt 0:08:38]} 22. Rxd8 {[%emt 0:06:38]} Kxd8 {[%emt 0:00:06]} 23. Bf3 {[%emt 0:05:11]} Rf5 {[%emt 0:05:10]} 24. Re2 {[%emt 0:00:12]} h5 {[%emt 0:00:43]} 25. c4 {[%emt 0:02:40]} Kc7 {[%emt 0:02:12]} 26. b4 {[%emt 0:01:27]} g5 {[%emt 0:01:28]} 27. Kd3 {[%emt 0:04:22]} Rf4 {[%emt 0:01:38]} 28. Ba8 {[%emt 0:00:46]} h4 {[%emt 0:04:18]} 29. Bf3 {[%emt 0:03:33]} Kd6 {[%emt 0:06:52]} 30. Rc2 {[%emt 0:15:13]} Nd7 {[%emt 0:00:09]} 31. Ke3 {[%emt 0:00:08]} Ne5 {[%emt 0:00:56]} 32. c5+ {[%emt 0:00:02]} bxc5 {[%emt 0:00:44]} 33. Rxc5 {[%emt 0:00:33]} Rc4 {[%emt 0:01:12]} 34. Ra5 {[%emt 0:00:01]} Rc3+ {[%emt 0:00:49]} 35. Kd2 {[%emt 0:00:25]} Rxa3 {[%emt 0:00:47]} 36. Rxa3 {[%emt 0:00:07]} Nc4+ {[%emt 0:00:01]} 37. Kc3 {[%emt 0:00:15]} Nxa3 {[%emt 0:00:01]} 38. Be2 {[%emt 0:00:04]} Kc6 {[%emt 0:00:30]} 39. Kd4 {[%emt 0:01:35]} f6 {[%emt 0:00:41]} 40. f4 {[%emt 0:08:35]} Nb5+ {[%emt 0:00:41]} 41. Ke3 {[%emt 0:30:03]} Nc3 {[%emt 0:04:27]} 42. fxg5 {[%emt 0:00:00]} fxg5 {[%emt 0:01:30]} 43. Bf3+ {[%emt 0:00:00]} Kb5 {[%emt 0:20:16]} 44. Kd4 {[%emt 0:00:00]} Kxb4 {[%emt 0:00:11]} 45. Bg4 {[%emt 0:00:00]} a5 {[%emt 0:00:32]} 46. Bxe6 {[%emt 0:00:00]} a4 {[%emt 0:00:27]} 47. Ke5 {[%emt 0:00:00]} Ne2 {[%emt 0:02:51]} 48. Kf6 {[%emt 0:00:00]} a3 {[%emt 0:00:29]} 49. Kxg5 {[%emt 0:00:00]} Nc1 {[%emt 0:00:20]} 50. Kxh4 {[%emt 0:00:00]} Nb3 {[%emt 0:00:11]} 51. Bxb3 {[%emt 0:00:00]} Kxb3 {[%emt 0:00:02]} 52. g4 {[%emt 0:00:00]} a2 {[%emt 0:00:06]} 53. g5 {[%emt 0:00:00]} a1=Q {[%emt 0:00:07]} 0-1

[Event "NOR-ch Elite 2019"]
[Site "Larvik"]
[Date "2019.07.11"]
[Round "7.9"]
[White "Skrondal, Inge Sandstad"]
[Black "Mikalsen, Erlend"]
[Result "1/2-1/2"]
[ECO "D37"]
[WhiteElo "2312"]
[BlackElo "2404"]
[Annotator "NA"]
[PlyCount "23"]
[EventDate "2019.07.05"]
[EventType "swiss"]
[EventCountry "NOR"]
[SourceTitle "playchess.com"]
[Source "ChessBase"]
[SourceQuality "1"]
[TimeControl "40/5400+30:1800+30"]

1. Nf3 {[%emt 0:00:00]} d5 {[%emt 0:00:00]} 2. d4 {[%emt 0:00:00]} Nf6 {[%emt 0:00:00]} 3. c4 {[%emt 0:00:00]} e6 {[%emt 0:00:00]} 4. Nc3 {[%emt 0:00:00]} Be7 {[%emt 0:02:02]} 5. Bf4 {[%emt 0:00:05]} O-O {[%emt 0:00:20]} 6. e3 {[%emt 0:00:05]} Nbd7 {[%emt 0:00:32]} 7. a3 {[%emt 0:01:33]} dxc4 {[%emt 0:09:19]} 8. Bxc4 {[%emt 0:00:37]} a6 {[%emt 0:00:58]} 9. Ba2 {[%emt 0:12:20]} b5 {[%emt 0:02:31]} 10. d5 {[%emt 0:02:49]} exd5 {[%emt 0:01:03]} 11. Nxd5 {[%emt 0:02:58]} Nxd5 {[%emt 0:00:08]} 12. Qxd5 {[%emt 0:16:03]} 1/2-1/2

[Event "NOR-ch Elite 2019"]
[Site "Larvik"]
[Date "2019.07.11"]
[Round "7.10"]
[White "Vitenberg, Noam Aviv"]
[Black "Kaasen, Tor Fredrik"]
[Result "0-1"]
[ECO "D38"]
[WhiteElo "2300"]
[BlackElo "2376"]
[Annotator "ChessBase"]
[PlyCount "98"]
[EventDate "2019.07.05"]
[EventType "swiss"]
[EventCountry "NOR"]
[SourceTitle "playchess.com"]
[Source "ChessBase"]
[SourceQuality "1"]
[TimeControl "40/5400+30:1800+30"]

1. Nf3 {[%emt 0:00:23]} d5 {[%emt 0:01:26]} 2. d4 {[%emt 0:00:08]} Nf6 {[%emt 0:00:14]} 3. c4 {[%emt 0:00:08]} e6 {[%emt 0:00:24]} 4. Nc3 {[%emt 0:00:09]} Bb4 {[%emt 0:00:49]} 5. cxd5 {[%emt 0:02:50]} exd5 {[%emt 0:00:12]} 6. Bg5 {[%emt 0:00:15]} h6 {[%emt 0:00:16]} 7. Bh4 {[%emt 0:00:12]} Nbd7 {[%emt 0:00:16]} 8. Qb3 {[%emt 0:09:33]} Be7 {[%emt 0:06:29]} 9. e3 {[%emt 0:01:30]} O-O {[%emt 0:00:37]} 10. Be2 {[%emt 0:08:06]} c6 {[%emt 0:03:29]} 11. O-O {[%emt 0:03:06]} Re8 {[%emt 0:00:33]} 12. Qc2 {[%emt 0:03:33]} b6 {[%emt 0:07:51]} 13. Rac1 {[%emt 0:01:55]} Bb7 {[%emt 0:00:32]} 14. Rfd1 {[%emt 0:00:27]} Rc8 {[%emt 0:00:48]} 15. Qb1 {[%emt 0:01:09]} Bd6 {[%emt 0:11:16]} 16. b4 {[%emt 0:01:06]} Qe7 {[%emt 0:04:59]} 17. a3 {[%emt 0:09:11]} g5 {[%emt 0:03:24]} 18. Bg3 {[%emt 0:03:08]} Bxg3 {[%emt 0:01:44]} 19. hxg3 {[%emt 0:00:09]} Qd6 {[%emt 0:03:36]} 20. a4 {[%emt 0:01:42]} Re7 {[%emt 0:02:17]} 21. a5 {[%emt 0:07:06]} Rce8 {[%emt 0:00:53]} 22. Qb3 {[%emt 0:00:36]} Ng4 {[%emt 0:02:25]} 23. a6 {[%emt 0:08:39]} Ba8 {[%emt 0:01:14]} 24. b5 {[%emt 0:03:33]} c5 {[%emt 0:05:44]} 25. Qc2 {[%emt 0:04:46]} Ndf6 {[%emt 0:08:06]} 26. Qf5 {[%emt 0:02:22]} Nxf2 {[%emt 0:07:14]} 27. Kxf2 {[%emt 0:02:42]} Rxe3 {[%emt 0:00:23]} 28. g4 {[%emt 0:06:13]} Rxc3 {[%emt 0:01:23]} 29. Bd3 {[%emt 0:04:29]} cxd4 {[%emt 0:06:54]} 30. Nxd4 {[%emt 0:03:52]} Rxc1 {[%emt 0:01:49]} 31. Rxc1 {[%emt 0:00:48]} Qe7 {[%emt 0:01:07]} 32. Qf3 {[%emt 0:04:54]} Nxg4+ {[%emt 0:00:59]} 33. Kg1 {[%emt 0:00:29]} Qe5 {[%emt 0:02:12]} 34. Qxg4 {[%emt 0:02:54]} Qe3+ {[%emt 0:00:16]} 35. Kh2 {[%emt 0:00:04]} Qxc1 {[%emt 0:00:05]} 36. Qd7 {[%emt 0:00:57]} Qc8 {[%emt 0:06:33]} 37. Bh7+ {[%emt 0:01:09]} Kg7 {[%emt 0:00:09]} 38. Qxa7 {[%emt 0:02:13]} Qb8+ {[%emt 0:02:16]} 39. Qxb8 {[%emt 0:00:12]} Rxb8 {[%emt 0:00:04]} 40. Bf5 {[%emt 0:00:36]} Kf6 {[%emt 0:00:18]} 41. Bd7 {[%emt 0:03:03]} Rd8 {[%emt 0:02:04]} 42. Bg4 {[%emt 0:08:16]} Ke5 {[%emt 0:01:21]} 43. Nf3+ {[%emt 0:03:05]} Kd6 {[%emt 0:00:08]} 44. Bf5 {[%emt 0:00:59]} Kc5 {[%emt 0:00:38]} 45. Bd3 {[%emt 0:00:25]} d4 {[%emt 0:00:21]} 46. Ne5 {[%emt 0:00:10]} Bd5 {[%emt 0:00:08]} 47. Kg3 {[%emt 0:00:51]} f6 {[%emt 0:00:35]} 48. Ng4 {[%emt 0:00:16]} Bc4 {[%emt 0:00:09]} 49. Be4 {[%emt 0:00:43]} Bxb5 {[%emt 0:00:15]} 0-1

[Event "NOR-ch Elite 2019"]
[Site "Larvik"]
[Date "2019.07.11"]
[Round "7.11"]
[White "Ingebretsen, Jens E"]
[Black "Vestby-Ellingsen, Mads"]
[Result "0-1"]
[ECO "A20"]
[WhiteElo "2276"]
[BlackElo "2335"]
[Annotator "NA"]
[PlyCount "82"]
[EventDate "2019.07.05"]
[EventType "swiss"]
[EventCountry "NOR"]
[SourceTitle "playchess.com"]
[Source "ChessBase"]
[SourceQuality "1"]
[TimeControl "40/5400+30:1800+30"]

1. c4 {[%emt 0:01:28]} e5 {[%emt 0:00:00]} 2. g3 {[%emt 0:00:21]} c6 {[%emt 0:00:14]} 3. d4 {[%emt 0:00:33]} e4 {[%emt 0:00:16]} 4. Nc3 {[%emt 0:01:22]} d5 {[%emt 0:00:18]} 5. Bg2 {[%emt 0:00:48]} Nf6 {[%emt 0:01:22]} 6. f3 {[%emt 0:01:52]} Bb4 {[%emt 0:08:36]} 7. Bg5 {[%emt 0:05:20]} O-O {[%emt 0:09:03]} 8. a3 {[%emt 0:10:31]} Bxc3+ {[%emt 0:02:04]} 9. bxc3 {[%emt 0:00:02]} Re8 {[%emt 0:11:14]} 10. Qd2 {[%emt 0:03:50]} Nbd7 {[%emt 0:06:24]} 11. cxd5 {[%emt 0:10:12]} cxd5 {[%emt 0:00:15]} 12. Nh3 {[%emt 0:02:15]} h6 {[%emt 0:08:02]} 13. Bxf6 {[%emt 0:01:46]} Nxf6 {[%emt 0:00:15]} 14. O-O {[%emt 0:00:45]} e3 {[%emt 0:05:02]} 15. Qc2 {[%emt 0:08:59]} Qc7 {[%emt 0:00:28]} 16. Nf4 {[%emt 0:01:33]} b6 {[%emt 0:01:41]} 17. Rac1 {[%emt 0:04:23]} Qd6 {[%emt 0:03:33]} 18. a4 {[%emt 0:01:56]} Ba6 {[%emt 0:01:39]} 19. Nd3 {[%emt 0:01:10]} Bxd3 {[%emt 0:00:31]} 20. Qxd3 {[%emt 0:01:00]} Rac8 {[%emt 0:01:01]} 21. c4 {[%emt 0:04:22]} Qb4 {[%emt 0:06:02]} 22. cxd5 {[%emt 0:01:13]} Rxc1 {[%emt 0:08:33]} 23. Rxc1 {[%emt 0:00:05]} Qxa4 {[%emt 0:00:10]} 24. f4 {[%emt 0:10:14]} Qd7 {[%emt 0:00:42]} 25. Qc4 {[%emt 0:02:28]} Rd8 {[%emt 0:00:47]} 26. Ra1 {[%emt 0:05:43]} a5 {[%emt 0:07:06]} 27. Rb1 {[%emt 0:01:51]} Rc8 {[%emt 0:06:11]} 28. Qb3 {[%emt 0:00:38]} b5 {[%emt 0:01:16]} 29. Qxe3 {[%emt 0:03:44]} b4 {[%emt 0:06:44]} 30. Rc1 {[%emt 0:04:17]} Rxc1+ {[%emt 0:01:03]} 31. Qxc1 {[%emt 0:00:01]} b3 {[%emt 0:02:16]} 32. e4 {[%emt 0:02:21]} Qa7 {[%emt 0:01:38]} 33. Qc3 {[%emt 0:00:43]} Qb6 {[%emt 0:01:16]} 34. Qb2 {[%emt 0:02:16]} a4 {[%emt 0:00:24]} 35. e5 {[%emt 0:01:28]} a3 {[%emt 0:00:37]} 36. Qc3 {[%emt 0:02:27]} b2 {[%emt 0:00:28]} 37. Qc8+ {[%emt 0:00:19]} Kh7 {[%emt 0:00:08]} 38. h4 {[%emt 0:01:28]} b1=Q+ {[%emt 0:00:27]} 39. Kh2 {[%emt 0:00:08]} Qxd4 {[%emt 0:01:02]} 40. exf6 {[%emt 0:00:25]} Qxf6 {[%emt 0:00:28]} 41. Qe8 {[%emt 0:30:24]} Qfg6 {[%emt 0:30:37]} 0-1

[Event "NOR-ch Elite 2019"]
[Site "Larvik"]
[Date "2019.07.11"]
[Round "7.13"]
[White "Moen, Andreas G.R."]
[Black "Altarbosh, Ward"]
[Result "0-1"]
[ECO "A33"]
[WhiteElo "2322"]
[BlackElo "2202"]
[Annotator "NA"]
[PlyCount "72"]
[EventDate "2019.07.05"]
[EventType "swiss"]
[EventCountry "NOR"]
[SourceTitle "playchess.com"]
[Source "ChessBase"]
[SourceQuality "1"]
[TimeControl "40/5400+30:1800+30"]

1. c4 {[%emt 0:03:13]} c5 {[%emt 0:00:00]} 2. Nf3 {[%emt 0:00:10]} Nc6 {[%emt 0:00:00]} 3. d4 {[%emt 0:01:08]} cxd4 {[%emt 0:01:31]} 4. Nxd4 {[%emt 0:00:13]} Nf6 {[%emt 0:00:23]} 5. Nc3 {[%emt 0:00:28]} e6 {[%emt 0:00:10]} 6. g3 {[%emt 0:03:12]} Qb6 {[%emt 0:03:15]} 7. Ndb5 {[%emt 0:05:49]} a6 {[%emt 0:13:42]} 8. Nd6+ {[%emt 0:05:12]} Bxd6 {[%emt 0:00:09]} 9. Qxd6 {[%emt 0:00:08]} Qb4 {[%emt 0:04:43]} 10. Qd3 {[%emt 0:26:44]} Ne5 {[%emt 0:12:21]} 11. Qd4 {[%emt 0:00:47]} Nc6 {[%emt 0:02:28]} 12. Qh4 {[%emt 0:09:55]} d5 {[%emt 0:02:58]} 13. cxd5 {[%emt 0:04:01]} Qxh4 {[%emt 0:00:51]} 14. gxh4 {[%emt 0:00:05]} Nd4 {[%emt 0:15:56]} 15. Kd1 {[%emt 0:03:30]} exd5 {[%emt 0:00:21]} 16. Rg1 {[%emt 0:04:09]} O-O {[%emt 0:07:41]} 17. Bg5 {[%emt 0:04:49]} Kh8 {[%emt 0:13:53]} 18. e3 {[%emt 0:03:53]} Nf3 {[%emt 0:01:09]} 19. Rg3 {[%emt 0:02:19]} d4 {[%emt 0:05:24]} 20. Bxf6 {[%emt 0:01:32]} gxf6 {[%emt 0:00:06]} 21. Ne2 {[%emt 0:06:34]} Nxh2 {[%emt 0:02:25]} 22. Bg2 {[%emt 0:08:05]} dxe3 {[%emt 0:02:10]} 23. fxe3 {[%emt 0:03:04]} Bg4 {[%emt 0:01:16]} 24. Ke1 {[%emt 0:00:49]} Rac8 {[%emt 0:01:41]} 25. Rc1 {[%emt 0:01:47]} h5 {[%emt 0:05:16]} 26. Bxb7 {[%emt 0:00:37]} Rxc1+ {[%emt 0:00:13]} 27. Nxc1 {[%emt 0:00:01]} Rd8 {[%emt 0:01:05]} 28. Ne2 {[%emt 0:00:47]} Rb8 {[%emt 0:00:53]} 29. Bxa6 {[%emt 0:00:42]} Rxb2 {[%emt 0:01:08]} 30. Bc4 {[%emt 0:00:44]} Nf3+ {[%emt 0:00:03]} 31. Kf2 {[%emt 0:00:29]} Nd2 {[%emt 0:00:34]} 32. Bd3 {[%emt 0:00:29]} Bxe2 {[%emt 0:00:29]} 33. Kxe2 {[%emt 0:00:31]} Ne4+ {[%emt 0:00:14]} 34. Kf3 {[%emt 0:00:06]} Nxg3 {[%emt 0:00:13]} 35. Kxg3 {[%emt 0:00:09]} Rxa2 {[%emt 0:00:11]} 36. Bc4 {[%emt 0:00:52]} Ra3 {[%emt 0:00:14]} 0-1

[Event "NOR-ch Elite 2019"]
[Site "Larvik"]
[Date "2019.07.12"]
[Round "8.1"]
[White "Tari, Aryan"]
[Black "Christiansen, Johan-Sebastian"]
[Result "1/2-1/2"]
[ECO "E06"]
[WhiteElo "2620"]
[BlackElo "2548"]
[Annotator "ChessBase"]
[PlyCount "73"]
[EventDate "2019.07.05"]
[EventType "swiss"]
[EventCountry "NOR"]
[SourceTitle "playchess.com"]
[Source "ChessBase"]
[SourceQuality "1"]
[TimeControl "40/5400+30:1800+30"]

1. d4 {[%emt 0:05:17]} Nf6 {[%emt 0:05:20]} 2. c4 {[%emt 0:00:00]} e6 {[%emt 0:00:32]} 3. g3 {[%emt 0:00:00]} d5 {[%emt 0:00:18]} 4. Bg2 {[%emt 0:00:00]} Be7 {[%emt 0:03:21]} 5. Nf3 {[%emt 0:00:00]} O-O {[%emt 0:00:30]} 6. Nc3 {[%emt 0:00:00]} dxc4 {[%emt 0:00:49]} 7. Ne5 {[%emt 0:00:00]} Nc6 {[%emt 0:23:35]} 8. Bxc6 {[%emt 0:00:00]} bxc6 {[%emt 0:00:01]} 9. Nxc6 {[%emt 0:00:00]} Qe8 {[%emt 0:00:04]} 10. Nxe7+ {[%emt 0:00:00]} Qxe7 {[%emt 0:00:01]} 11. Qa4 {[%emt 0:00:00]} c5 {[%emt 0:04:22]} 12. dxc5 {[%emt 0:00:00]} Qxc5 {[%emt 0:01:44]} 13. Be3 {[%emt 0:00:00]} Qc7 {[%emt 0:01:30]} 14. O-O-O {[%emt 0:00:00]} Bd7 {[%emt 0:05:36]} 15. Qa3 {[%emt 0:05:27]} Bc6 {[%emt 0:04:56]} 16. f3 {[%emt 0:01:50]} Nd5 {[%emt 0:00:40]} 17. Bd4 {[%emt 0:09:47]} Qb7 {[%emt 0:10:33]} 18. Nxd5 {[%emt 0:05:38]} exd5 {[%emt 0:00:01]} 19. g4 {[%emt 0:00:57]} a5 {[%emt 0:04:53]} 20. Qc3 {[%emt 0:08:37]} f6 {[%emt 0:01:17]} 21. Qd2 {[%emt 0:06:34]} a4 {[%emt 0:01:43]} 22. a3 {[%emt 0:00:45]} Qe7 {[%emt 0:01:04]} 23. h4 {[%emt 0:03:17]} Rfe8 {[%emt 0:03:02]} 24. Rh2 {[%emt 0:03:08]} Rab8 {[%emt 0:01:37]} 25. g5 {[%emt 0:04:15]} f5 {[%emt 0:00:14]} 26. h5 {[%emt 0:07:30]} Rb3 {[%emt 0:03:32]} 27. Rg2 {[%emt 0:02:23]} Bb7 {[%emt 0:05:30]} 28. h6 {[%emt 0:05:57]} g6 {[%emt 0:00:05]} 29. Qf4 {[%emt 0:00:58]} Rc8 {[%emt 0:04:42]} 30. Kc2 {[%emt 0:12:34]} Qc7 {[%emt 0:01:44]} 31. Be5 {[%emt 0:03:15]} Qb6 {[%emt 0:01:15]} 32. Qd4 {[%emt 0:03:10]} Qxd4 {[%emt 0:01:51]} 33. Bxd4 {[%emt 0:00:10]} Kf7 {[%emt 0:00:10]} 34. Bc3 {[%emt 0:00:24]} Re8 {[%emt 0:00:26]} 35. Kd2 {[%emt 0:01:57]} Rb6 {[%emt 0:01:24]} 36. Ke1 {[%emt 0:01:13]} Rbe6 {[%emt 0:00:40]} 37. Kf1 {[%emt 0:02:26]} 1/2-1/2

[Event "NOR-ch Elite 2019"]
[Site "Larvik"]
[Date "2019.07.12"]
[Round "8.2"]
[White "Urkedal, Frode Olav Olsen"]
[Black "Notkevich, Benjamin Arvola"]
[Result "0-1"]
[ECO "A85"]
[WhiteElo "2566"]
[BlackElo "2497"]
[Annotator "ChessBase"]
[PlyCount "66"]
[EventDate "2019.07.05"]
[EventType "swiss"]
[EventCountry "NOR"]
[SourceTitle "playchess.com"]
[Source "ChessBase"]
[SourceQuality "1"]
[TimeControl "40/5400+30:1800+30"]

1. c4 {[%emt 0:08:49]} e6 {[%emt 0:00:00]} 2. Nc3 {[%emt 0:00:09]} d5 {[%emt 0:00:00]} 3. d4 {[%emt 0:00:14]} c6 {[%emt 0:00:00]} 4. e3 {[%emt 0:00:54]} Bd6 {[%emt 0:00:00]} 5. Nf3 {[%emt 0:01:16]} f5 {[%emt 0:00:00]} 6. Bd3 {[%emt 0:01:13]} Nf6 {[%emt 0:00:02]} 7. O-O {[%emt 0:00:41]} O-O {[%emt 0:01:31]} 8. Ne5 {[%emt 0:06:15]} Bxe5 {[%emt 0:05:40]} 9. dxe5 {[%emt 0:00:09]} Ng4 {[%emt 0:00:07]} 10. f4 {[%emt 0:10:07]} d4 {[%emt 0:00:25]} 11. Ne2 {[%emt 0:04:11]} Nxe3 {[%emt 0:05:14]} 12. Bxe3 {[%emt 0:00:17]} dxe3 {[%emt 0:00:02]} 13. Rf3 {[%emt 0:01:20]} Na6 {[%emt 0:02:42]} 14. a3 {[%emt 0:07:22]} Nc5 {[%emt 0:04:28]} 15. Bc2 {[%emt 0:10:11]} a5 {[%emt 0:21:05]} 16. Rxe3 {[%emt 0:15:03]} Qb6 {[%emt 0:01:45]} 17. Qc1 {[%emt 0:11:28]} Bd7 {[%emt 0:04:36]} 18. b3 {[%emt 0:03:23]} Rfd8 {[%emt 0:13:00]} 19. h3 {[%emt 0:02:17]} Be8 {[%emt 0:01:52]} 20. Kh2 {[%emt 0:00:06]} Rd7 {[%emt 0:04:10]} 21. Rb1 {[%emt 0:03:34]} Rad8 {[%emt 0:00:07]} 22. b4 {[%emt 0:00:32]} axb4 {[%emt 0:05:43]} 23. axb4 {[%emt 0:00:08]} Nd3 {[%emt 0:01:06]} 24. Bxd3 {[%emt 0:00:10]} Rxd3 {[%emt 0:00:04]} 25. c5 {[%emt 0:04:47]} Qb5 {[%emt 0:00:17]} 26. Rxd3 {[%emt 0:01:44]} Qxd3 {[%emt 0:00:07]} 27. Rb2 {[%emt 0:01:11]} Bh5 {[%emt 0:03:40]} 28. Ng3 {[%emt 0:02:19]} Bd1 {[%emt 0:00:39]} 29. b5 {[%emt 0:01:06]} cxb5 {[%emt 0:13:21]} 30. c6 {[%emt 0:00:06]} bxc6 {[%emt 0:00:18]} 31. Qxc6 {[%emt 0:00:09]} Bb3 {[%emt 0:00:35]} 32. Nf1 {[%emt 0:02:54]} Qxf1 {[%emt 0:02:26]} 33. Rxb3 {[%emt 0:01:27]} Qxf4+ {[%emt 0:00:08]} 0-1

[Event "NOR-ch Elite 2019"]
[Site "Larvik"]
[Date "2019.07.12"]
[Round "8.3"]
[White "Lie, Kjetil A."]
[Black "Holm, Kristian Stuvik"]
[Result "1/2-1/2"]
[ECO "A36"]
[WhiteElo "2538"]
[BlackElo "2469"]
[Annotator "ChessBase"]
[PlyCount "36"]
[EventDate "2019.07.05"]
[EventType "swiss"]
[EventCountry "NOR"]
[SourceTitle "playchess.com"]
[Source "ChessBase"]
[SourceQuality "1"]
[TimeControl "40/5400+30:1800+30"]

1. c4 {[%emt 0:05:19]} g6 {[%emt 0:06:11]} 2. g3 {[%emt 0:00:00]} c5 {[%emt 0:00:30]} 3. Bg2 {[%emt 0:00:00]} Bg7 {[%emt 0:00:04]} 4. Nc3 {[%emt 0:00:00]} Nc6 {[%emt 0:00:04]} 5. b3 {[%emt 0:00:00]} d6 {[%emt 0:05:08]} 6. Bb2 {[%emt 0:01:46]} Bf5 {[%emt 0:07:54]} 7. d3 {[%emt 0:11:49]} Qd7 {[%emt 0:01:51]} 8. Qd2 {[%emt 0:00:57]} e5 {[%emt 0:01:42]} 9. h4 {[%emt 0:13:35]} h6 {[%emt 0:10:08]} 10. Nd5 {[%emt 0:10:00]} Nge7 {[%emt 0:01:34]} 11. e4 {[%emt 0:07:34]} Be6 {[%emt 0:01:47]} 12. h5 {[%emt 0:01:29]} g5 {[%emt 0:02:26]} 13. f4 {[%emt 0:01:25]} gxf4 {[%emt 0:00:28]} 14. gxf4 {[%emt 0:00:48]} Nd4 {[%emt 0:08:16]} 15. Nf3 {[%emt 0:14:57]} Nxd5 {[%emt 0:03:35]} 16. cxd5 {[%emt 0:00:08]} Bg4 {[%emt 0:00:26]} 17. Nxd4 {[%emt 0:04:12]} cxd4 {[%emt 0:01:26]} 18. Rc1 {[%emt 0:00:56]} f5 {[%emt 0:05:13]} 1/2-1/2